Cogmind - Beta 16.1 @@@ ROGUE MODE // 2026.02.15 @ 00:29:10 Player: ae Result: Self-destructed Performance ------------- Evolutions (0) 0 Regions Visited (3) 600 Robots Destroyed (2) 10 Value Destroyed (87) 87 Prototype IDs (8) 160 Alien Tech Used (0) 0 Bonus (300) 300 TOTAL SCORE: 1157 Bonus ------- Registered with UFD 300 Cogmind --------- Core Integrity 203/250 Matter 270/300 Energy 275/275 System Corruption 0% Temperature Cool (0) Movement Walking (90) Location -7/Scraptown Parts ------- > --- POWER (1) -------- Deuterium Engine > --- PROPULSION (2) --- Overtuned Flexi-carbon Leg Overtuned Flexi-carbon Leg > --- UTILITY (2) ------ Improved Heat Sink Advanced Signal Interpreter > --- WEAPON (2) ------- Subdweller Laser Subdweller Machine Gun > --- INVENTORY (5) ---- Overtuned Railgun Botcube Peak State ------------ > --- POWER ------------ Deuterium Engine > --- PROPULSION ------- Overtuned Flexi-carbon Leg Overtuned Flexi-carbon Leg > --- UTILITY ---------- Improved Heat Sink Advanced Signal Interpreter > --- WEAPON ----------- Subdweller Laser Subdweller Machine Gun > --- INVENTORY -------- Flight Unit Improved Heat Sink EM Pulse Gun Overtuned Railgun Botcube [Rating: 29] Favorites ----------- Power Deuterium Engine Engine Deuterium Engine Power Core Light Nuclear Core Propulsion Overtuned Flexi-carbon Leg Treads Light Treads Leg Overtuned Flexi-carbon Leg Wheel Armored Wheel Flight Unit Cesium-ion Thruster Utility Improved Heat Sink Device Improved Heat Sink Storage Small Storage Unit Processor Advanced Signal Interpreter Weapon Subdweller Laser Energy Gun Subdweller Laser Ballistic Gun Subdweller Machine Gun Build | -11 -10 -10 -7 ------- Run | Yrd Mat Sub Scr Slots Evolved . | . . . . Power . | . . . . Propulsion . | . . . . Utility . | . . . . Weapon . | . . . . Parts Attached 21 | 6 4 4 7 Power 3 | 1 1 . 1 Engine 2 | 1 . . 1 Core 1 | . 1 . . Reactor . | . . . . Propulsion 10 | 2 2 1 5 Treads 2 | 2 . . . Leg 2 | . . . 2 Wheel 3 | . . 1 2 Hover . | . . . . Flight 3 | . 2 . 1 Utility 4 | 1 1 1 1 Device 2 | . 1 1 . Storage 1 | 1 . . . Processor 1 | . . . 1 Hackware . | . . . . Protection . | . . . . Artifact . | . . . . Weapon 4 | 2 . 2 . Energy Gun 1 | . . 1 . Energy Cannon . | . . . . Ballistic Gun 3 | 2 . 1 . Ballistic Cannon . | . . . . Launcher . | . . . . Special Weapon . | . . . . Impact Weapon . | . . . . Slashing Weapon . | . . . . Piercing Weapon . | . . . . Special Melee Weapon . | . . . . Unidentified Prototypes . | . . . . Parts Lost . | . . . . Power . | . . . . Propulsion . | . . . . Utility . | . . . . Weapon . | . . . . Highest Loss Streak . | . . . . To Critical Strikes . | . . . . Average Backups 4 | 4 5 5 4 Power . | . . . . Propulsion 1 | 2 3 2 1 Utility 1 | . . 1 1 Weapon 1 | . 1 1 1 Tool/Special . | . . . . Unused Backups 10 | . 3 2 5 Power 1 | . 1 . . Propulsion 5 | . 2 2 1 Utility 2 | . . . 2 Weapon 2 | . . . 2 Tool/Special . | . . . . Average Slot Usage (%) 98 | . 81 96 100 Engine 10 | . 11 . 10 Core 3 | . 2 14 3 Treads 1 | . 17 . . Leg 7 | . . . 8 Wheel 8 | . . 10 9 Flight 10 | . 10 17 9 Device 15 | . 2 24 16 Processor 9 | . . . 11 Energy Gun 12 | . . 10 14 Ballistic Gun 15 | . 28 17 14 Peak Build Rating 29 | 6 10 15 29 Average Rating 19 | 4 6 13 21 On Entrance 7 | . 6 10 15 Avg Prop Armor Cover (%) 6 | . . 4 6 Naked Turns . | . . . . Heaviest Build 18 | 10 10 16 18 Greatest Support 46 | 40 40 20 46 Greatest Overweight (x) 5 | 1 1 1 5 Average Overweight (x) . | . . . 1 Largest Inventory Capacity 8 | 8 8 5 5 Average Capacity 5 | 6 6 5 5 Most Carried 6 | 6 6 5 5 Average Carried 5 | 4 5 4 4 Final Capacity 8 | 8 5 5 5 Final Carried 6 | 6 5 5 2 Class Distribution -------------------- 72% | Mutant 27% | Scavenger-Mutant Dominant Class ---------------- Mutant | -10/Materials Scavenger-Mutant | -10/Subcaves Mutant | -7/Scraptown Resources | -11 -10 -10 -7 ----------- Run | Yrd Mat Sub Scr Matter Collected 415 | 221 87 57 50 Remotely . | . . . . Salvage Created 108 | . 48 60 . Parts 5 | . 3 2 . Haulers Intercepted . | . . . . Recyclers Shooed . | . . . . Parts Field Recycled . | . . . . Retrieved Matter . | . . . . Parts Self-Destructed 9 | . . 9 . Prevented . | . . . . Parts Restored . | . . . . Kills | -11 -10 -10 -7 ------- Run | Yrd Mat Sub Scr Combat Hostiles Destroyed 2 | . 1 1 . Guns 2 | . 1 1 . Classes Destroyed 2 | . 1 1 . Grunt 1 | . 1 . . Subdweller 1 | . . 1 . Best Kill Streak 1 | . 1 1 . Combat Bots Only 1 | . 1 1 . Max Kills in Single Turn 1 | . 1 1 . Gunslinging . | . . . . Exploded . | . . . . Melee . | . . . . Uniques/NPCs Destroyed . | . . . . Combat | -11 -10 -10 -7 -------- Run | Yrd Mat Sub Scr Hostile Shots Fired 13 | . 9 4 . Missed 1 | . . 1 . Hits 12 | . 9 3 . Projectile 12 | . 9 3 . Damage Taken 191 | . 123 68 . Core 47 | . 24 23 . Absorbed by Shields . | . . . . Core Remaining (%) 100 | 100 . . . Volleys Fired 13 | . 4 9 . Largest 2 | . 2 2 . Hottest 80 | . 40 80 . Shots Fired 26 | . 8 18 . Gun 26 | . 8 18 . Cannon . | . . . . Launcher . | . . . . Special . | . . . . Kinetic 25 | . 8 17 . Thermal 1 | . . 1 . Explosive . | . . . . Electromagnetic . | . . . . Robot Hit Streak 12 | . 5 12 . Robot Miss Streak 1 | . 1 1 . Penetration Max . | . . . . Secondary Targets . | . . . . Shots Hit Robots 22 | . 6 16 . Core Hits 6 | . 4 2 . Critical Kills . | . . . . Critical Parts Destroyed . | . . . . Critical Strikes . | . . . . Melee Attacks . | . . . . Impact . | . . . . Slashing . | . . . . Piercing . | . . . . Sneak Attacks . | . . . . Combat Hostiles . | . . . . Follow-up Attacks . | . . . . Damage Inflicted 198 | . 56 142 . Guns 198 | . 56 142 . Cannons . | . . . . Explosions . | . . . . Melee . | . . . . Ramming . | . . . . Kinetic 175 | . 56 119 . Thermal 23 | . . 23 . Explosive . | . . . . Electromagnetic . | . . . . Impact . | . . . . Slashing . | . . . . Piercing . | . . . . Highest Corruption . | . . . . Average Corruption . | . . . . Corruption Purged . | . . . . Corruption Blocked . | . . . . Overload Shots . | . . . . Overflow Damage . | . . . . Projectiles . | . . . . Explosions . | . . . . Melee . | . . . . Knockbacks . | . . . . Impact . | . . . . Kinetic . | . . . . Secondary . | . . . . Self-Inflicted Damage . | . . . . Shots . | . . . . Rammed . | . . . . Targets Rammed . | . . . . Kicked . | . . . . Crushed . | . . . . Highest Temperature 58 | . 58 . . Average Temperature 35 | . 35 . . Received Heat Transfer 84 | . 66 18 . Siege Activations . | . . . . Martial Activations . | . . . . Shielding Activations . | . . . . Robots Disrupted . | . . . . Combat Hostiles . | . . . . Robots Corrupted . | . . . . Combat Hostiles . | . . . . Parts Fried . | . . . . Impact Corruptions . | . . . . Robots Melted . | . . . . Combat Hostiles . | . . . . Parts Melted 1 | . . 1 . Heat Transferred 25 | . . 25 . Parts Sabotaged . | . . . . Parts Stolen . | . . . . Parts Stripped . | . . . . Power Chain Reactions . | . . . . Alert | -11 -10 -10 -7 ------- Run | Yrd Mat Sub Scr Maximum Alert Level . | . . . . Low Security (%) 100 | 100 100 . . Level 1 . | . . . . Level 2 . | . . . . Level 3 . | . . . . Level 4 . | . . . . Level 5 . | . . . . High Security . | . . . . Max Security . | . . . . Peak Influence 30 | . 30 . . Initial . | . . . . Average 2 | . 2 . . Influence Increases 34 | . 34 . . Destroy 0b10 Robot/C 20 | . 20 . . Destroy Leader 10 | . 10 . . Successful Hack 4 | . 4 . . Influence Decreases 34 | . 34 . . Time Decay 34 | . 34 . . Squads Dispatched 1 | . 1 . . Investigation . | . . . . Extermination . | . . . . Reinforcement 1 | . 1 . . Assault . | . . . . Garrison . | . . . . Intercept . | . . . . Searches Triggered . | . . . . Construction Impeded . | . . . . Haulers Reinforced . | . . . . Active Scanning Responses . | . . . . Cargo Convoy Interrupts . | . . . . Stealth | -11 -10 -10 -7 --------- Run | Yrd Mat Sub Scr Distress Signals 2 | . 2 . . Communications Jammed . | . . . . Distress Signals . | . . . . Times Spotted 9 | . 5 4 . Peak Tracking Total 4 | . 4 2 . Tactical Retreats . | . . . . Traps | -11 -10 -10 -7 ------- Run | Yrd Mat Sub Scr Traps Triggered . | . . . . Indirectly . | . . . . Trap Hack Attempts . | . . . . Triggered . | . . . . Disarmed . | . . . . Reprogrammed . | . . . . Reused . | . . . . Traps Extracted . | . . . . Installed . | . . . . Triggered . | . . . . Machines | -11 -10 -10 -7 ---------- Run | Yrd Mat Sub Scr Machines Disabled . | . . . . Max in Single Turn . | . . . . Machines Repaired . | . . . . Machines Dismantled . | . . . . Machines Sabotaged . | . . . . Overloaded Fab Kills . | . . . . Hacking | -11 -10 -10 -7 --------- Run | Yrd Mat Sub Scr Machines Accessed 4 | . 2 . 2 Terminals 2 | . 2 . . Fabricators . | . . . . Repair Stations . | . . . . Recycling Units . | . . . . Scanalyzers . | . . . . Garrison Access . | . . . . Total Hacks 13 | . 7 . 6 Successful 9 | . 3 . 6 Failed 4 | . 4 . . Catastrophic 1 | . 1 . . Database Lockouts . | . . . . Manual 8 | . 7 . 1 Terminals 7 | . 7 . . Fabricators . | . . . . Repair Stations . | . . . . Recycling Units . | . . . . Scanalyzers . | . . . . Garrison Access . | . . . . Terminal Hacks 7 | . 1 . 6 Part Schematic 1 | . 1 . . Robot Analysis 5 | . . . 5 Proto ID Catalog 1 | . . . 1 Fabricator Hacks . | . . . . Repair Station Hacks . | . . . . Recycling Unit Hacks . | . . . . Scanalyzer . | . . . . Garrison Access Hacks . | . . . . Unauthorized Hacks 2 | . 2 . . Terminals 2 | . 2 . . Botnet 2 | . 2 . . Fabricators . | . . . . Repair Stations . | . . . . Recycling Units . | . . . . Scanalyzers . | . . . . Garrison Access . | . . . . Data Cores Recovered . | . . . . Used . | . . . . Hacking Detections 2 | . 2 . . Full Trace Events . | . . . . Feedback Events . | . . . . Feedback Blocked . | . . . . Robot Schematics Acquired . | . . . . Robots Built . | . . . . Authchips . | . . . . Time . | . . . . Total Robot Build Rating . | . . . . Part Schematics Acquired 1 | . 1 . . Parts Built . | . . . . Authchips . | . . . . Time . | . . . . Total Part Build Rating . | . . . . Part Studies Acquired . | . . . . Parts Repaired . | . . . . Time . | . . . . Parts Recycled . | . . . . Recycled Matter . | . . . . Retrieved Matter . | . . . . Retrieved Components . | . . . . Parts Scanalyzed . | . . . . Part Schematics Acquired . | . . . . Parts Damaged . | . . . . Bothacking | -11 -10 -10 -7 ------------ Run | Yrd Mat Sub Scr Used RIF Installer . | . . . . Robots Hacked . | . . . . Non-combat . | . . . . Combat . | . . . . Robot Hacks Applied . | . . . . Relay Couplers Released . | . . . . Fabnet Peak Effective % . | . . . . Robots Rewired . | . . . . Allies Hacked . | . . . . Hacks Repelled . | . . . . Allies | -11 -10 -10 -7 -------- Run | Yrd Mat Sub Scr Total Allies . | . . . . Largest Group . | . . . . Highest-Rated Group . | . . . . Highest-Rated Ally . | . . . . Total Orders . | . . . . Ally Attacks . | . . . . Total Damage . | . . . . Kills . | . . . . Allies Corrupted . | . . . . Allies Melted . | . . . . Intel | -11 -10 -10 -7 ------- Run | Yrd Mat Sub Scr Active Infowar (turns) 445 | . . 171 274 Optics 445 | . . 171 274 Robot Analysis Total 5 | . . . 5 Derelict Logs Recovered 4 | . . . 4 Drone Launches . | . . . . Drone Recoveries . | . . . . Exploration | -11 -10 -10 -7 ------------- Run | Yrd Mat Sub Scr Turns Passed 3595 | 70 268 226 3031 Spaces Moved 2162 | 45 191 131 1795 Core 262 | 16 . . 246 Treads 104 | 29 75 . . Legs 249 | . . . 249 Wheels 1416 | . . 116 1300 Hover . | . . . . Flight 131 | . 116 15 . Fastest Speed 37 | 50 37 37 90 Average Speed 125 | 124 87 102 130 Slowest Speed 300 | 160 160 117 300 Overloaded Moves . | . . . . Propulsion Burnouts . | . . . . Robots Hopped . | . . . . Potential Cave-ins . | . . . . Cave-ins Triggered . | . . . . Exploration Rate (%) 34 | 4 32 12 89 Regions Visited 3 Branch Regions 2 Pre-discovered Areas 2 | . . . 2 Known Exits Taken . | . . . . Unknown Exits Taken 3 | 1 1 1 . Scrap Searched 4 | . . . 4 Spaces Dug . | . . . . Terrain Destroyed . | . . . . Melee . | . . . . Projectile . | . . . . AOE . | . . . . Terrain Rammed . | . . . . Walls Destroyed . | . . . . Machines Disabled . | . . . . Actions | -11 -10 -10 -7 --------- Run | Yrd Mat Sub Scr Total 3028 | 56 287 208 2477 Wait 799 | . 81 58 660 Move 2159 | 44 190 130 1795 Hop . | . . . . Pick Up 12 | 6 2 2 2 Fast Attach 17 | 6 3 3 5 Attach 1 | . . . 1 Detach . | . . . . Swap 4 | . 1 1 2 Drop 22 | . 6 5 11 Fire 13 | . 4 9 . Melee . | . . . . Ram . | . . . . Kick . | . . . . Crush . | . . . . Escape Stasis . | . . . . Rewire 1 | . . . 1 Trap . | . . . . Miscellaneous . | . . . . Route ------- -11/Scrapyard -10/Materials (discovered 2 exits: [*Mat] / [*Sub]) -10/Subcaves -7/Scraptown (discovered 1 exit: [*Fac]) History --------- Turn | Location | Event 5 | -11/Scrapyard | Discovered new exit (range 15) 71 | -11/Scrapyard | Entered Materials 72 | -10/Materials | Met a group of wandering Federalists 260 | -10/Materials | Discovered new exit (range 6) 330 | -10/Materials | Discovered new exit (range 8) 339 | -10/Materials | Entered Subcaves 340 | -10/Subcaves | Shifting Twisted Machinery released Sub. Monowheel 340 | -10/Subcaves | Continued accompanying wandering Federalists (4) 340 | -10/Subcaves | Approached by a straggling Scientist 343 | -10/Subcaves | Ambushed by Subdwellers from Twisted Machinery 406 | -10/Subcaves | Shifting Twisted Machinery released Battle Cannon 545 | -10/Subcaves | Wandering Federalist uncovered a shortcut to Scraptown 565 | -10/Subcaves | Entered Scraptown 586 | -7/Scraptown | Heard Great Nut preacher, LISTEN AND RECITE! 598 | -7/Scraptown | Build established: Scavenger-Mutant 726 | -7/Scraptown | Visited UFD Registry 726 | -7/Scraptown | Registered with UFD as "Steamrunner" 735 | -7/Scraptown | Visited TADAMA 750 | -7/Scraptown | Visited Awakened 774 | -7/Scraptown | Visited Assassins FH 822 | -7/Scraptown | Visited Spacefarers 832 | -7/Scraptown | Visited IN-MT5's Study 914 | -7/Scraptown | Visited The Evicted 941 | -7/Scraptown | Scanned Subdweller tech in exchange for log data 943 | -7/Scraptown | Learned Research emergency access door positions 944 | -7/Scraptown | Learned location of Warlord (-4) 945 | -7/Scraptown | Learned Research security intel 946 | -7/Scraptown | Learned location of Testing (-3) 994 | -7/Scraptown | Guru changed UFD alias to "Wrenchdome" 1014 | -7/Scraptown | Discovered new exit (range 11) 1551 | -7/Scraptown | Visited Botcube Research 1564 | -7/Scraptown | Build established: Mutant 1580 | -7/Scraptown | Visited Science Guys 1912 | -7/Scraptown | Visited Analyses Database 1935 | -7/Scraptown | Visited Scrapoid Pod Storage 1996 | -7/Scraptown | Visited Scrapoid Research Area 2032 | -7/Scraptown | Visited Chapter 10 2573 | -7/Scraptown | Visited Curators Association 2611 | -7/Scraptown | Visited Modified Component R&D 2765 | -7/Scraptown | Visited Shadow of the Wyrm 3191 | -7/Scraptown | Found Botcube 3596 | -7/Scraptown | Self-destructed Last Messages --------------- doesn't feel all that "United" at all. 97-8SU(h): Hey there, Wrenchdome, have we met somewhere? I could've sworn I saw you running for your life in the Subcaves around the same time I was. Those Subdwellers can be fierce! 03089_ Ovr. Flexi-carbon Leg suddenly begins malfunctioning. 03093_ Connecting with SG-Prototypes Database... 03180_ Ovr. Flexi-carbon Leg recovered from malfunction. 03191_ Dropped Sub. Optics. 03191_ Acquired Botcube. 03233_ Ovr. Flexi-carbon Leg suddenly begins malfunctioning. 03241_ Ovr. Flexi-carbon Leg recovered from malfunction. 03591_ Dropped Flight Unit. 03592_ Dropped Imp. Heat Sink. 03592_ Dropped EM Pulse Gun. Map ----- +----------------------------------------------------+ | ??#""" " ###### ########### | | ??#"" " ###### ######????## # | | ??#""""""" #""""" """""#####?# # | | ??######## #" " " #?# " | | ?????????### #""" ""#" " " "### ### " | | ???????????# #""" "#" " " "#"" """ | | ???????????# #""" "#""""" """""#" """ " | | ???????????# #"" "###### ######" " " | | ???????????# #" "#""""" """""#" # | | ???????????# #""" ""#" " " "#" "" " # | | ???????????# #### ###" " " "#" " # | | ???????????# #??# " " "#"""""" # | | ???????????# #??#####""""" """""####### # | | ??????????## ##?????###### ######?????# # | | ??????????# ############ ############ # | | ??????????# # | | ??????????# # | | ??????????# ######################### # | | ??????????## ##??????????????????????# # | | ??????###### ########???????#######?### # | | ?#""" """""" """""""#?????"""""""""?# | | ?#" """""" " "#????#"" " "# | | ?#" """"" ! "#????#" " # | | ?#" " " !* "#?????""" | | ??""" " ! "#????#" # | | ???""""" " " !]]@"#????#" """ # # | | ????"""""""" " !["#??????""" ?# # | | ????######## " != "#??????"" ""?# # | | ?????####### " "#?????"" " ""??# # | | ???""""""""" """" ""#?????""""""""??# # | | ?#"""""""" " x#### ###??????######???# # | | ??"" " " ####g###???????????????# # | | ??"""" " """" ""#???????????????# # | | ??""" " "#???????######### # | | ???"""""" " " "" "#?????"##""""" # # | | ??""" " " "" "#?????? # # | | ???"""" " " "#???????# # # | | ???""" " " ""#???????# """ # # | | ???""""" " " """""#???????# """ # # | | ???""" " """""""#???????# """ # # | | ???"" " " """""""????????# """ # # | | ???""""" " ######?????????# """ # # | | ??""" " ########???????# # | | ???""""" " #"""X""#???????# " " | | ??""" "" " #" "#???????#""""" # | | ?#"" #" "#???????######### | | ??"""" " #" "#?????????####### | | ??"" " #" "#????????## | | ?#"" """"""" #" "#????????# | | ??## ####### #"" """########### | +----------------------------------------------------+ Best States ------------- Heat Dissipation 39 Energy Generation 14 Energy Capacity 275 Matter Stores 300 Matter Capacity 300 Sight Range 21 Terrain Scan Density 10 Evasion (%) 62 Recoil Reduction 2 Item Schematics ----------------- Sml. Storage Unit | -10/Materials | Hacked Robot Schematics ------------------ None Fabricated ------------ Nothing Repaired ---------- Nothing Studied --------- None Alien Tech Used ----------------- None Achievements -------------- None Challenges ------------ None Game ------ Seed AngularSmartReplica Manual? 0 Play Time 00:20:10 Cumulative 107.9 hours Start 2026.02.14 @ 20:16:53 End 2026.02.15 @ 00:29:10 Sessions 3 Manual Loads 0 Difficulty Rogue Special Mode None Game No. 74 Rogue 70 Adventurer 4 Explorer 0 Win Type - Total 4 Types 4/0/0/0/0/0/0/0/0/0 Lore% 67 Gallery% 49 Achievement% 40 Wizard Run 0 Options --------- Layout 2 ASCII 0 Keyboard 1 Movement Vi Keybinds 0 Fullscreen 2 Font 24/Smallcaps Map View 50x44 Zoom Use 0% Tactical HUD 1 Map Filters NONE Filters NONE Steam 1 RUN: 3c9e5d45-1b98-404c-bb06-abc5dec3b523